[Event "8th RTU Open 2018"]
[Site "Riga"]
[Date "2018.08.09"]
[Round "5"]
[White "Kuznecovs, Nikita"]
[Black "Bernotas, Arturs"]
[Result "0-1"]
[ECO "A46"]
[WhiteElo "2280"]
[BlackElo "2406"]
[Annotator "NA"]
[PlyCount "110"]
[EventDate "2018.08.06"]
[EventType "swiss"]
[EventCountry "LAT"]
[SourceTitle "playchess.com"]
[Source "ChessBase"]
[SourceQuality "1"]
[TimeControl "5400+30"]

1. d4 {[%emt 0:00:00]} Nf6 {[%emt 0:02:13]} 2. Nf3 {[%emt 0:00:30]} e6 {[%emt 0:00:37]} 3. Nbd2 {[%emt 0:02:17]} c5 {[%emt 0:02:38]} 4. e3 {[%emt 0:01:32]} b6 {[%emt 0:00:55]} 5. Bd3 {[%emt 0:00:26]} Bb7 {[%emt 0:00:45]} 6. O-O {[%emt 0:00:41]} Be7 {[%emt 0:00:26]} 7. b3 {[%emt 0:10:12]} O-O {[%emt 0:02:02]} 8. Bb2 {[%emt 0:00:07]} d6 {[%emt 0:04:54]} 9. Qe2 {[%emt 0:01:52]} a6 {[%emt 0:03:06] LiveBook: 4 Games} 10. Ng5 {[%emt 0:19:12]} h6 {[%emt 0:12:29]} 11. f4 {[%emt 0:00:06]} hxg5 {[%emt 0:17:13]} 12. fxg5 {[%emt 0:00:06]} Nh7 {[%emt 0:00:11]} ({Better is} 12... Ne8 $11 13. Qh5 g6) 13. g6 $15 {[%emt 0:23:11]} (13. d5 $11 Bxg5 14. dxe6 fxe6 15. Qh5) 13... fxg6 {[%emt 0:09:03]} 14. Qg4 {[%emt 0:07:17]} Rf5 {[%emt 0:05:04]} 15. e4 {[%emt 0:26:00]} Rxf1+ {[%emt 0:05:00]} 16. Rxf1 {[%emt 0:00:06]} Nf8 {[%emt 0:00:15]} 17. Rxf8+ {[%emt 0:02:12]} Qxf8 {[%emt 0:11:54]} 18. e5 {[%emt 0:00:11]} dxe5 {[%emt 0:01:39]} 19. dxe5 {[%emt 0:00:53]} c4 {[%emt 0:02:02]} 20. Bxg6 {[%emt 0:01:05]} Bc5+ {[%emt 0:08:13]} 21. Kh1 {[%emt 0:00:01]} Be3 {[%emt 0:02:04]} 22. Qxe6+ {[%emt 0:00:45]} Kh8 {[%emt 0:00:01]} 23. Ba3 {[%emt 0:00:51]} Qc8 {[%emt 0:01:59]} 24. Qd6 {[%emt 0:01:09]} Bxg2+ {[%emt 0:01:55]} 25. Kxg2 {[%emt 0:00:06]} Qg4+ {[%emt 0:00:07]} 26. Kf1 {[%emt 0:00:15]} Qd1+ {[%emt 0:00:10]} 27. Kg2 {[%emt 0:00:10]} Qxd2+ {[%emt 0:00:11]} 28. Qxd2 {[%emt 0:00:52]} Bxd2 {[%emt 0:00:03]} 29. e6 {[%emt 0:00:08]} Nc6 {[%emt 0:01:16]} 30. e7 {[%emt 0:00:01]} Nxe7 {[%emt 0:00:21]} 31. Bxe7 {[%emt 0:00:04]} Rc8 {[%emt 0:00:54]} 32. h4 {[%emt 0:00:50]} b5 {[%emt 0:01:24]} 33. h5 {[%emt 0:00:30]} cxb3 {[%emt 0:00:37]} 34. cxb3 {[%emt 0:01:12]} Rc1 {[%emt 0:00:21]} 35. a4 {[%emt 0:00:40]} bxa4 {[%emt 0:01:00]} 36. bxa4 {[%emt 0:00:01]} Ra1 {[%emt 0:00:06]} 37. Kf3 {[%emt 0:00:44]} Rxa4 {[%emt 0:00:09]} 38. Ke2 {[%emt 0:00:02]} Bb4 {[%emt 0:00:41]} 39. Bg5 {[%emt 0:00:03]} a5 {[%emt 0:00:16]} 40. Kd3 {[%emt 0:00:03]} Ra3+ {[%emt 0:00:12]} 41. Kc2 {[%emt 0:01:12]} Rg3 {[%emt 0:00:32]} 42. Bf4 {[%emt 0:00:49]} Rf3 {[%emt 0:00:28]} 43. Be5 {[%emt 0:00:10]} Rh3 {[%emt 0:00:23]} 44. Kb2 {[%emt 0:01:56]} a4 {[%emt 0:00:09]} 45. Ka2 {[%emt 0:00:10]} Re3 {[%emt 0:00:26]} 46. Bd4 {[%emt 0:00:53]} Re2+ {[%emt 0:00:09]} 47. Ka1 {[%emt 0:00:27]} Bd2 {[%emt 0:01:24]} 48. Bb2 {[%emt 0:00:28]} Bg5 {[%emt 0:00:16]} 49. Kb1 {[%emt 0:00:45]} Bf6 {[%emt 0:00:24]} 50. Ba3 {[%emt 0:00:19]} Re3 {[%emt 0:00:59]} 51. Bc1 {[%emt 0:00:47]} Rb3+ {[%emt 0:01:00]} 52. Ka2 {[%emt 0:00:50]} Rc3 {[%emt 0:00:32]} 53. Bd2 {[%emt 0:00:28]} Rh3 {[%emt 0:00:02]} 54. Bc1 {[%emt 0:00:09]} Rh1 {[%emt 0:00:09]} 55. Bh6 {[%emt 0:00:37]} Ra1# {[%emt 0:00:10]} 0-1

[Event "8th RTU Open 2018"]
[Site "Riga"]
[Date "2018.08.09"]
[Round "5"]
[White "Tanriverdi, Enes"]
[Black "Gokerkan, Cem Kaan"]
[Result "1/2-1/2"]
[ECO "D37"]
[WhiteElo "2276"]
[BlackElo "2404"]
[Annotator "NA"]
[PlyCount "101"]
[EventDate "2018.08.06"]
[EventType "swiss"]
[EventCountry "LAT"]
[SourceTitle "playchess.com"]
[Source "ChessBase"]
[SourceQuality "1"]
[TimeControl "5400+30"]

1. d4 {[%emt 0:00:00]} Nf6 {[%emt 0:00:00]} 2. c4 {[%emt 0:00:00]} e6 {[%emt 0:00:04]} 3. Nf3 {[%emt 0:00:00]} d5 {[%emt 0:00:13]} 4. Nc3 {[%emt 0:00:04]} a6 {[%emt 0:00:21]} 5. cxd5 {[%emt 0:00:52]} exd5 {[%emt 0:00:05]} 6. Bg5 {[%emt 0:00:05]} Be6 {[%emt 0:00:07]} 7. e3 {[%emt 0:00:09]} Nbd7 {[%emt 0:00:16]} 8. Bd3 {[%emt 0:00:25]} Bd6 {[%emt 0:00:26]} 9. Bf4 {[%emt 0:00:43]} Qe7 {[%emt 0:01:33]} 10. Bxd6 {[%emt 0:03:11]} Qxd6 {[%emt 0:00:25]} 11. Qc2 {[%emt 0:00:17]} h6 {[%emt 0:14:30]} 12. h3 {[%emt 0:02:10]} O-O {[%emt 0:02:01]} 13. O-O {[%emt 0:08:22]} Rfe8 {[%emt 0:05:45]} 14. Rfd1 {[%emt 0:10:01]} Rac8 {[%emt 0:13:46]} 15. Rac1 {[%emt 0:16:51]} c5 {[%emt 0:05:16]} 16. dxc5 {[%emt 0:01:05]} Nxc5 {[%emt 0:00:17]} 17. Nd4 {[%emt 0:04:33]} Qe5 $14 {[%emt 0:18:21]} 18. Nxe6 {[%emt 0:20:38]} fxe6 {[%emt 0:21:29]} 19. Ne2 {[%emt 0:09:08]} Nxd3 {[%emt 0:05:26]} 20. Qxd3 {[%emt 0:00:07]} Qxb2 {[%emt 0:08:40]} 21. Rb1 {[%emt 0:00:28]} Qxa2 {[%emt 0:03:39]} 22. Rxb7 {[%emt 0:00:18]} Qc4 {[%emt 0:10:36]} 23. Qg6 {[%emt 0:00:40]} Rc7 {[%emt 0:00:01]} 24. Rdb1 {[%emt 0:00:19]} Qc6 {[%emt 0:03:16]} 25. R7b6 {[%emt 0:03:54]} Qd7 {[%emt 0:00:12]} 26. Rxa6 {[%emt 0:01:08]} Qf7 {[%emt 0:00:03]} 27. Qxf7+ {[%emt 0:03:26]} Kxf7 {[%emt 0:00:03]} 28. Nd4 {[%emt 0:00:28]} Rd7 {[%emt 0:01:24]} 29. Rbb6 {[%emt 0:01:22]} e5 {[%emt 0:03:10]} 30. Nf5 {[%emt 0:00:04]} Ne4 {[%emt 0:00:53]} 31. f3 {[%emt 0:02:21]} Nc5 {[%emt 0:00:00]} 32. Ra5 {[%emt 0:00:32]} Re6 {[%emt 0:00:28]} 33. Rbb5 {[%emt 0:00:56]} Kf6 {[%emt 0:01:17]} 34. Ng3 {[%emt 0:03:40]} Nb7 {[%emt 0:00:35]} 35. Rxd5 {[%emt 0:00:08]} Nxa5 {[%emt 0:00:26]} 36. Rxd7 {[%emt 0:00:06]} Nc4 {[%emt 0:00:01]} 37. Nh5+ {[%emt 0:00:46]} Kg5 {[%emt 0:00:00]} 38. Nxg7 {[%emt 0:01:10]} Ra6 {[%emt 0:00:01]} 39. f4+ {[%emt 0:07:48]} Kg6 {[%emt 0:01:35]} 40. g4 {[%emt 0:01:52]} Nxe3 {[%emt 0:00:48]} 41. Nh5 {[%emt 0:00:33]} Nf5 {[%emt 0:00:34]} 42. gxf5+ {[%emt 0:01:33]} Kxh5 {[%emt 0:00:01]} 43. fxe5 {[%emt 0:00:06]} Ra5 {[%emt 0:00:43]} 44. e6 {[%emt 0:00:42]} Kg5 {[%emt 0:00:14]} 45. Rf7 {[%emt 0:00:26]} Kf4 {[%emt 0:00:26]} 46. e7 {[%emt 0:00:32]} Kf3 {[%emt 0:00:51]} 47. Rg7 {[%emt 0:00:57]} Ra1+ {[%emt 0:00:46]} 48. Kh2 {[%emt 0:00:05]} Ra2+ {[%emt 0:00:33]} 49. Kh1 {[%emt 0:00:02]} Re2 {[%emt 0:00:22]} 50. f6 {[%emt 0:00:10]} Re1+ {[%emt 0:00:30]} 51. Rg1 {[%emt 0:00:04]} 1/2-1/2

[Event "8th RTU Open 2018"]
[Site "Riga"]
[Date "2018.08.09"]
[Round "5"]
[White "Rogule, Laura"]
[Black "Lagunow, Raphael"]
[Result "1/2-1/2"]
[ECO "B31"]
[WhiteElo "2272"]
[BlackElo "2404"]
[Annotator "ChessBase"]
[PlyCount "27"]
[EventDate "2018.08.06"]
[EventType "swiss"]
[EventCountry "LAT"]
[SourceTitle "playchess.com"]
[Source "ChessBase"]
[SourceQuality "1"]
[TimeControl "5400+30"]

1. e4 {[%emt 0:03:18]} c5 {[%emt 0:02:05]} 2. Nf3 {[%emt 0:00:09]} Nc6 {[%emt 0:00:18]} 3. Bb5 {[%emt 0:00:11]} g6 {[%emt 0:00:40]} 4. Bxc6 {[%emt 0:00:21]} bxc6 {[%emt 0:00:07]} 5. O-O {[%emt 0:00:43]} Bg7 {[%emt 0:00:10]} 6. Re1 {[%emt 0:01:34]} Nh6 {[%emt 0:00:31]} 7. c3 {[%emt 0:00:45]} O-O {[%emt 0:00:11]} 8. d4 {[%emt 0:00:30]} cxd4 {[%emt 0:00:08]} 9. cxd4 {[%emt 0:00:10]} d5 {[%emt 0:00:08]} 10. e5 {[%emt 0:00:41]} f6 {[%emt 0:00:09]} 11. h3 {[%emt 0:02:34]} Nf7 {[%emt 0:06:21]} 12. e6 {[%emt 0:09:49]} Nd6 {[%emt 0:09:20]} 13. Nc3 {[%emt 0:13:57]} f5 {[%emt 0:23:34]} 14. Ne5 1/2-1/2

[Event "8th RTU Open 2018"]
[Site "Riga"]
[Date "2018.08.09"]
[Round "5"]
[White "Hjelmaas, Lars"]
[Black "Samolins, Vitalijs"]
[Result "1-0"]
[ECO "E06"]
[WhiteElo "2271"]
[BlackElo "2419"]
[Annotator "NA"]
[PlyCount "86"]
[EventDate "2018.08.06"]
[EventType "swiss"]
[EventCountry "LAT"]
[SourceTitle "playchess.com"]
[Source "ChessBase"]
[SourceQuality "1"]
[TimeControl "5400+30"]

1. d4 {[%emt 0:01:01]} Nf6 {[%emt 0:00:00]} 2. c4 {[%emt 0:00:10]} e6 {[%emt 0:00:00]} 3. g3 {[%emt 0:00:20]} d5 {[%emt 0:00:00]} 4. Nf3 {[%emt 0:00:12]} Be7 {[%emt 0:00:18]} 5. Bg2 {[%emt 0:00:06]} O-O {[%emt 0:00:18]} 6. O-O {[%emt 0:00:13]} dxc4 {[%emt 0:00:19] LiveBook: 7808 Games} 7. Na3 {[%emt 0:00:07]} b6 {[%emt 0:04:35] E05: Open Catalan: 5 Nf3 Be7} (7... Bxa3 $11 8. bxa3 Bd7 (8... Nbd7 9. a4 a5 10. Ba3 Re8 11. Rc1 Nb6 12. Ne5 Nfd5 13. e4 Nb4 14. Qh5 Qe7 15. Nxc4 Nxc4 16. Rxc4 {1-0 (28) Jones,G (2671)-Friedel,J (2524) Reykjavik 2017})) 8. Ne5 {[%emt 0:03:23]} Nd5 {[%emt 0:00:34]} 9. Naxc4 {[%emt 0:01:18]} Bb7 {[%emt 0:00:34]} 10. e4 $146 {[%emt 0:16:52]} ({Predecessor:} 10. Bd2 c5 11. dxc5 Bxc5 12. Nd3 Be7 13. Bb4 Nc6 14. Bxe7 Qxe7 15. Nce5 Nxe5 16. Nxe5 {½-½ (44) Zilberstein,V (2365)-Slavin,G Katowice 1990}) 10... Nf6 {[%emt 0:00:51]} 11. Qe2 {[%emt 0:01:59]} ({Besser ist} 11. Qc2 $16) 11... Nbd7 {[%emt 0:29:37]} 12. Rd1 {[%emt 0:05:56]} Nxe5 {[%emt 0:02:09]} 13. dxe5 {[%emt 0:01:56]} Nd7 {[%emt 0:00:07]} 14. Be3 {[%emt 0:03:25]} Qc8 {[%emt 0:03:39]} 15. Rac1 {[%emt 0:03:00]} Ba6 {[%emt 0:01:36]} 16. Qc2 {[%emt 0:14:17]} Rd8 {[%emt 0:03:45]} 17. f4 $11 {[%emt 0:04:43]} Qb7 {[%emt 0:05:38]} 18. a3 {[%emt 0:10:24]} Nf8 {[%emt 0:16:15]} 19. Nd6 {[%emt 0:06:11]} Bxd6 {[%emt 0:10:01]} 20. exd6 {[%emt 0:01:21]} cxd6 {[%emt 0:00:02]} 21. b4 {[%emt 0:03:39]} Rac8 {[%emt 0:01:35]} 22. Qb3 {[%emt 0:00:38]} Be2 {[%emt 0:01:22]} 23. Re1 {[%emt 0:02:30]} Qa6 {[%emt 0:01:44]} 24. a4 {[%emt 0:00:51]} Bc4 {[%emt 0:01:11]} 25. Qc2 {[%emt 0:03:38]} d5 {[%emt 0:01:27]} 26. b5 {[%emt 0:00:47]} Qb7 {[%emt 0:00:30]} 27. Qb2 {[%emt 0:00:50]} dxe4 {[%emt 0:01:31]} 28. Bd4 {[%emt 0:00:12]} f5 {[%emt 0:00:47]} 29. h4 {[%emt 0:01:54]} h5 {[%emt 0:01:41]} 30. Re3 {[%emt 0:01:28]} Qd7 {[%emt 0:01:44]} 31. Be5 {[%emt 0:01:25]} Bd3 {[%emt 0:01:05]} 32. Rd1 {[%emt 0:01:42]} Ng6 {[%emt 0:01:59]} 33. Bf3 {[%emt 0:04:33]} Nxe5 {[%emt 0:05:17]} 34. Qxe5 {[%emt 0:00:21]} Rc5 {[%emt 0:00:20]} 35. Qb2 {[%emt 0:03:00]} Rc2 {[%emt 0:01:40]} 36. Qe5 {[%emt 0:00:18]} Qd4 {[%emt 0:01:25]} 37. Qxd4 {[%emt 0:00:50]} Rxd4 {[%emt 0:00:01]} 38. Bxh5 {[%emt 0:00:26]} Rxa4 {[%emt 0:00:11]} 39. g4 {[%emt 0:01:10]} Rac4 {[%emt 0:02:05]} 40. gxf5 {[%emt 0:01:40]} exf5 {[%emt 0:00:01]} 41. Bg6 {[%emt 0:00:32]} Rc1 {[%emt 0:00:25]} 42. Ree1 {[%emt 0:00:52]} Rxd1 {[%emt 0:01:57]} 43. Rxd1 {[%emt 0:00:05]} Rb4 {[%emt 0:00:35]} 1-0

[Event "8th RTU Open 2018"]
[Site "Riga"]
[Date "2018.08.09"]
[Round "5"]
[White "Arnold, Max"]
[Black "Martin, Julian"]
[Result "1/2-1/2"]
[ECO "B22"]
[WhiteElo "2260"]
[BlackElo "2392"]
[Annotator "ChessBase"]
[PlyCount "165"]
[EventDate "2018.08.06"]
[EventType "swiss"]
[EventCountry "LAT"]
[SourceTitle "playchess.com"]
[Source "ChessBase"]
[SourceQuality "1"]
[TimeControl "5400+30"]

1. e4 {[%emt 0:00:41]} c5 {[%emt 0:00:00]} 2. c3 {[%emt 0:00:07]} d6 {[%emt 0:00:00]} 3. d4 {[%emt 0:00:17]} Nf6 {[%emt 0:00:00]} 4. Bd3 {[%emt 0:00:28]} g6 {[%emt 0:00:00]} 5. Nf3 {[%emt 0:00:47]} Bg7 {[%emt 0:00:00]} 6. O-O {[%emt 0:00:54]} O-O {[%emt 0:00:09]} 7. h3 {[%emt 0:00:23]} Qc7 {[%emt 0:00:05]} 8. Re1 {[%emt 0:02:08]} Rd8 {[%emt 0:02:57]} 9. Nbd2 {[%emt 0:08:44]} b6 {[%emt 0:02:39]} 10. Nf1 {[%emt 0:02:24]} Bb7 {[%emt 0:00:19]} 11. Ng3 {[%emt 0:03:10]} Nbd7 {[%emt 0:00:54]} 12. Bg5 {[%emt 0:05:15]} h6 {[%emt 0:03:57]} 13. Be3 {[%emt 0:05:53]} Rac8 {[%emt 0:00:58]} 14. Qd2 {[%emt 0:02:38]} Kh7 {[%emt 0:00:15]} 15. d5 {[%emt 0:03:19]} c4 {[%emt 0:04:02]} 16. Bc2 {[%emt 0:00:32]} e6 {[%emt 0:04:41]} 17. dxe6 {[%emt 0:03:42]} fxe6 {[%emt 0:00:57]} 18. Qe2 {[%emt 0:02:46]} e5 {[%emt 0:10:51]} 19. h4 Nf8 {[%emt 0:23:10]} 20. h5 {[%emt 0:07:26]} g5 {[%emt 0:04:05]} 21. Nh2 Qf7 {[%emt 0:06:07]} 22. Rad1 {[%emt 0:10:58]} Ne6 {[%emt 0:01:44]} 23. Ng4 {[%emt 0:04:30]} Rc7 {[%emt 0:02:03]} 24. Nf5 {[%emt 0:04:24]} Bf8 {[%emt 0:01:03]} 25. Nxf6+ {[%emt 0:11:03]} Qxf6 {[%emt 0:02:33]} 26. Rd2 {[%emt 0:01:32]} Ng7 {[%emt 0:03:13]} 27. Ng3 {[%emt 0:01:14]} Bc8 {[%emt 0:01:14]} 28. Red1 {[%emt 0:00:39]} Be6 {[%emt 0:01:04]} 29. a4 {[%emt 0:04:35]} Qf7 {[%emt 0:00:59]} 30. Rd5 {[%emt 0:01:15]} Bxd5 {[%emt 0:05:10]} 31. exd5+ {[%emt 0:00:02]} Kh8 {[%emt 0:00:09]} 32. Bg6 {[%emt 0:02:29]} Qe7 {[%emt 0:00:28]} 33. Qf3 {[%emt 0:05:00]} Ne8 {[%emt 0:01:24]} 34. Ra1 {[%emt 0:02:56]} Bg7 35. Nf5 {[%emt 0:00:41]} Qf8 {[%emt 0:01:17]} 36. g3 {[%emt 0:00:45]} Qg8 {[%emt 0:10:18]} 37. Kg2 {[%emt 0:01:56]} Rdd7 {[%emt 0:04:12]} 38. Rd1 {[%emt 0:00:37]} Rc8 {[%emt 0:00:33]} 39. Qg4 {[%emt 0:01:22]} Nf6 {[%emt 0:00:23]} 40. Qh3 {[%emt 0:00:17]} Bf8 {[%emt 0:00:53]} 41. Kh2 {[%emt 0:00:43]} Rcc7 {[%emt 0:00:58]} 42. Qg2 {[%emt 0:01:47]} Bg7 {[%emt 0:00:28]} 43. Kh1 {[%emt 0:00:18]} Qf8 {[%emt 0:00:20]} 44. f4 {[%emt 0:00:50]} g4 {[%emt 0:02:14]} 45. fxe5 {[%emt 0:00:18]} dxe5 {[%emt 0:00:01]} 46. d6 {[%emt 0:00:16]} Rc8 {[%emt 0:00:48]} 47. Rf1 {[%emt 0:00:04]} Rxd6 {[%emt 0:01:30]} 48. Nxd6 {[%emt 0:00:36]} Qxd6 {[%emt 0:00:01]} 49. Qe2 {[%emt 0:00:53]} e4 {[%emt 0:01:04]} 50. Kh2 {[%emt 0:00:44]} Nd7 {[%emt 0:01:12]} 51. Qxg4 {[%emt 0:00:19]} Rd8 {[%emt 0:00:12]} 52. Qxe4 {[%emt 0:00:38]} Ne5 {[%emt 0:00:46]} 53. Bd4 {[%emt 0:00:18]} Nxg6 {[%emt 0:01:29]} 54. Bxg7+ {[%emt 0:00:28]} Kxg7 {[%emt 0:00:01]} 55. hxg6 {[%emt 0:00:10]} Rd7 {[%emt 0:00:12]} 56. Rf4 {[%emt 0:00:44]} h5 {[%emt 0:00:39]} 57. Qxc4 {[%emt 0:00:46]} Qxg6 {[%emt 0:00:11]} 58. Qe2 {[%emt 0:00:14]} Qg5 {[%emt 0:00:22]} 59. Qf2 {[%emt 0:00:41]} Kg6 {[%emt 0:00:37]} 60. Qc2+ {[%emt 0:00:21]} Kg7 {[%emt 0:00:33]} 61. Qf2 {[%emt 0:00:05]} Kg6 {[%emt 0:00:04]} 62. Qc2+ {[%emt 0:01:22]} Kg7 {[%emt 0:00:18]} 63. Qe2 {[%emt 0:00:34]} Re7 {[%emt 0:00:54]} 64. Re4 {[%emt 0:00:28]} Rf7 {[%emt 0:00:07]} 65. Re5 {[%emt 0:00:20]} Qf6 {[%emt 0:01:25]} 66. Rxh5 {[%emt 0:00:34]} Qf2+ {[%emt 0:00:06]} 67. Qxf2 {[%emt 0:00:04]} Rxf2+ {[%emt 0:00:00]} 68. Kh3 {[%emt 0:00:20]} Rxb2 {[%emt 0:00:02]} 69. Rd5 {[%emt 0:00:18]} Kf6 {[%emt 0:00:37]} 70. Rd7 {[%emt 0:00:16]} a6 {[%emt 0:00:15]} 71. Ra7 {[%emt 0:00:15]} a5 {[%emt 0:00:03]} 72. Rb7 {[%emt 0:00:28]} Kg5 {[%emt 0:00:18]} 73. Rb8 {[%emt 0:00:47]} Rb3 {[%emt 0:00:14]} 74. Rg8+ {[%emt 0:01:04]} Kf6 {[%emt 0:00:10]} 75. Rb8 {[%emt 0:00:07]} Kg5 {[%emt 0:00:04]} 76. Rg8+ {[%emt 0:00:53]} Kf6 {[%emt 0:00:05]} 77. Rc8 {[%emt 0:00:22]} Kg5 {[%emt 0:00:23]} 78. Rc6 {[%emt 0:00:52]} Ra3 {[%emt 0:01:24]} 79. Rxb6 {[%emt 0:00:20]} Rxa4 {[%emt 0:00:01]} 80. Rb5+ {[%emt 0:00:08]} Kg6 {[%emt 0:00:06]} 81. Rc5 {[%emt 0:00:26]} Kh6 {[%emt 0:00:44]} 82. c4 {[%emt 0:00:32]} Rb4 {[%emt 0:00:06]} 83. Rxa5 {[%emt 0:01:24]} 1/2-1/2

[Event "8th RTU Open 2018"]
[Site "Riga"]
[Date "2018.08.09"]
[Round "5"]
[White "Severina, Maria"]
[Black "Krupenski, Juri"]
[Result "0-1"]
[ECO "E15"]
[WhiteElo "2242"]
[BlackElo "2390"]
[Annotator "NA"]
[PlyCount "120"]
[EventDate "2018.08.06"]
[EventType "swiss"]
[EventCountry "LAT"]
[SourceTitle "playchess.com"]
[Source "ChessBase"]
[SourceQuality "1"]
[TimeControl "5400+30"]

1. d4 {[%emt 0:01:25]} Nf6 {[%emt 0:00:00]} 2. c4 {[%emt 0:00:04]} e6 {[%emt 0:00:21]} 3. Nf3 {[%emt 0:00:04]} b6 {[%emt 0:01:32]} 4. g3 {[%emt 0:00:12]} Bb7 {[%emt 0:00:20]} 5. Bg2 {[%emt 0:00:09]} g6 {[%emt 0:00:47]} 6. Nc3 {[%emt 0:18:51]} Ne4 {[%emt 0:21:22]} 7. Bd2 {[%emt 0:14:22]} Bg7 {[%emt 0:01:44]} 8. Rc1 {[%emt 0:01:31]} c5 {[%emt 0:07:25]} 9. dxc5 {[%emt 0:19:26]} bxc5 {[%emt 0:11:01]} 10. Nxe4 {[%emt 0:22:30]} Bxe4 {[%emt 0:00:06]} 11. Bc3 {[%emt 0:00:08]} f6 {[%emt 0:02:51]} 12. O-O $14 {[%emt 0:03:13]} O-O 13. Qd6 {[%emt 0:03:37]} Qb6 {[%emt 0:05:53]} 14. Rfd1 Qxd6 15. Rxd6 {[%emt 0:00:23]} Rc8 {[%emt 0:02:15]} 16. Nd2 {[%emt 0:07:19]} Bxg2 {[%emt 0:01:36]} 17. Kxg2 {[%emt 0:00:01]} f5 {[%emt 0:09:22]} 18. Bxg7 {[%emt 0:06:30]} Kxg7 {[%emt 0:00:20]} 19. e4 {[%emt 0:00:42]} Kf6 {[%emt 0:03:34]} 20. f4 {[%emt 0:02:14]} Ke7 {[%emt 0:00:50]} 21. e5 {[%emt 0:00:50]} Nc6 {[%emt 0:08:19]} 22. Rd1 {[%emt 0:04:04]} Rc7 {[%emt 0:01:20]} 23. Nb1 {[%emt 0:00:46]} Rb8 {[%emt 0:04:22]} 24. b3 {[%emt 0:00:24]} Rb6 {[%emt 0:01:09]} 25. R6d2 {[%emt 0:02:31]} Nd4 {[%emt 0:07:02]} 26. Nc3 {[%emt 0:00:23]} Ra6 {[%emt 0:00:30]} 27. Na4 {[%emt 0:00:42]} d6 {[%emt 0:00:34]} 28. exd6+ {[%emt 0:05:13]} Kxd6 {[%emt 0:00:04]} 29. Re1 {[%emt 0:01:18]} g5 {[%emt 0:03:06]} 30. Re5 {[%emt 0:01:14]} gxf4 {[%emt 0:00:05]} 31. gxf4 {[%emt 0:01:38]} Rg7+ {[%emt 0:00:05]} 32. Kf2 {[%emt 0:01:48]} Rg4 {[%emt 0:00:24]} 33. Ke3 {[%emt 0:00:11]} Rxa4 {[%emt 0:01:54]} 34. bxa4 {[%emt 0:00:13]} Rh4 {[%emt 0:00:04]} 35. Rg2 {[%emt 0:01:28]} Rh3+ {[%emt 0:00:30]} 36. Kf2 {[%emt 0:00:30]} Rf3+ {[%emt 0:02:21]} 37. Ke1 {[%emt 0:00:44]} Rxf4 {[%emt 0:00:04]} 38. Re3 {[%emt 0:00:05]} Rh4 {[%emt 0:01:50]} 39. a5 {[%emt 0:01:25]} e5 {[%emt 0:00:14]} 40. Reg3 {[%emt 0:00:07]} e4 {[%emt 0:00:31]} 41. Rg7 {[%emt 0:00:53]} e3 {[%emt 0:00:45]} 42. Rxa7 {[%emt 0:00:37]} f4 {[%emt 0:00:27]} 43. a6 {[%emt 0:00:34]} f3 {[%emt 0:00:17]} 44. Rb2 {[%emt 0:00:16]} f2+ {[%emt 0:00:32]} 45. Kf1 {[%emt 0:00:22]} Rxh2 {[%emt 0:00:15]} 46. Rf7 {[%emt 0:00:34]} Nc6 {[%emt 0:01:36]} 47. Rf3 {[%emt 0:00:48]} Rh1+ {[%emt 0:00:22]} 48. Ke2 {[%emt 0:00:23]} Re1+ {[%emt 0:00:14]} 49. Kd3 {[%emt 0:00:01]} Ne5+ {[%emt 0:00:15]} 50. Kc3 {[%emt 0:01:03]} Nxf3 {[%emt 0:00:27]} 51. a7 {[%emt 0:00:07]} f1=Q {[%emt 0:00:10]} 52. a8=Q {[%emt 0:00:23]} Rc1+ {[%emt 0:00:06]} 53. Kb3 {[%emt 0:00:22]} Qxc4+ {[%emt 0:00:22]} 54. Ka3 {[%emt 0:00:04]} Rc3+ {[%emt 0:00:07]} 55. Rb3 {[%emt 0:00:09]} Qb4+ {[%emt 0:00:53]} 56. Kb2 {[%emt 0:00:02]} Rxb3+ {[%emt 0:00:29]} 57. axb3 {[%emt 0:00:05]} Nd4 {[%emt 0:00:40]} 58. Qd8+ {[%emt 0:01:45]} Ke5 {[%emt 0:00:08]} 59. Qc7+ {[%emt 0:00:47]} Ke4 {[%emt 0:01:22]} 60. Qe7+ {[%emt 0:00:09]} Kf3 {[%emt 0:00:24]} 0-1